fUST/lending_fUST_20250226
["ID","MTS","AMOUNT","RATE_DAILY","PERIOD"]
[354529698,1740558678091,-613.55,0.00038902,2]
[354529699,1740558678101,-648.85,0.00038902,2]
[354529700,1740558678110,-500.0,0.00038902,2]
[354529701,1740558678119,-500.0,0.00038902,2]
[354529702,1740558678128,-500.0,0.00038902,2]
[354529703,1740558678138,-500.0,0.00038902,2]
[354529704,1740558678147,-500.0,0.00038902,2]
[354529705,1740558678156,-500.0,0.00038902,2]
[354529706,1740558678165,-500.0,0.00038902,2]
[354529707,1740558678174,-500.0,0.00038902,2]
[354529708,1740558678183,-500.0,0.00038902,2]
[354529709,1740558678193,-500.0,0.00038902,2]
[354529710,1740558678202,-500.0,0.00038902,2]
[354529711,1740558678213,-502.84178624,0.00038902,2]
[354529712,1740558678222,-500.0,0.00038902,2]
[354529713,1740558678231,-509.25657923,0.00038902,2]
[354529714,1740558678241,-153.63577998,0.00038902,2]
[354529715,1740558678251,-500.0,0.00038902,2]
[354529716,1740558678262,-569.12,0.00038902,2]
[354529717,1740558678272,-500.0,0.00038902,2]
[354529718,1740558678282,-500.0,0.00038902,2]
[354529719,1740558678293,-523.10722969,0.00038902,2]
[354529720,1740558678303,-819.68,0.00038902,2]
[354529721,1740558678312,-500.0,0.00038902,2]
[354529722,1740558678321,-500.0,0.00038902,2]
[354529723,1740558678332,-500.0,0.00038902,2]
[354529724,1740558678341,-337.96992551,0.00038902,2]
[354529725,1740558678350,-505.42047916,0.00038902,2]
[354529726,1740558678361,-501.51615591,0.00038902,2]
[354529727,1740558678371,-690.47,0.00038902,2]
[354529728,1740558678381,-500.0,0.00038902,2]
[354529729,1740558678390,-564.17,0.00038902,2]
[354529730,1740558678400,-500.0,0.00038902,2]
[354529731,1740558678409,-681.33,0.00038902,2]
[354529732,1740558678419,-500.0,0.00038903,2]
[354529733,1740558678428,-500.0,0.00038903,2]
[354529734,1740558678438,-500.0,0.00038903,2]
[354529735,1740558678448,-1934.61,0.00038903,2]
[354529736,1740558678458,-500.0,0.00038903,2]
[354529737,1740558678468,-791.41,0.00038903,2]
[354529738,1740558678477,-500.0,0.00038903,2]
[354529739,1740558678487,-500.0,0.00038903,2]
[354529740,1740558678496,-1419.4,0.00038903,2]
[354529741,1740558678506,-1936.09,0.00038903,2]
[354529742,1740558678515,-1160.21,0.00038903,2]
[354529743,1740558678525,-728.98,0.00038903,2]
[354529744,1740558678534,-500.0,0.00038903,2]
[354529745,1740558678543,-500.0,0.00038903,2]
[354529746,1740558678553,-2716.92,0.00038903,2]
[354529747,1740558678562,-1164.04,0.00038903,2]
[354529748,1740558678571,-962.5,0.00038903,2]
[354529749,1740558678581,-679.73,0.00038903,2]
[354529750,1740558678591,-5271.87,0.00038903,2]
[354529751,1740558678600,-2041.52,0.00038903,2]
[354529752,1740558678609,-500.0,0.00038904,2]
[354529753,1740558678745,-502.09379907,0.00038904,2]
[354529754,1740558678755,-500.0,0.00038904,2]
[354529755,1740558678765,-500.0,0.00038904,2]
[354529756,1740558678775,-500.0,0.00038904,2]
[354529757,1740558678784,-500.0,0.00038904,2]
[354529758,1740558678794,-503.38610217,0.00038904,2]
[354529759,1740558678803,-500.0,0.00038904,2]
[354529760,1740558678813,-598.83417877,0.00038904,2]
[354529761,1740558678823,-500.0,0.00038904,2]
[354529762,1740558678833,-500.0,0.00038904,2]
[354529763,1740558678843,-500.0,0.00038904,2]
[354529764,1740558678852,-507.25396328,0.00038904,2]
[354529765,1740558678862,-500.0,0.00038904,2]
[354529766,1740558678871,-500.0,0.00038904,2]
[354529767,1740558678883,-500.0,0.00038904,2]
[354529768,1740558678893,-500.0,0.00038904,2]
[354529769,1740558678902,-500.0,0.00038904,2]
[354529770,1740558678912,-500.0,0.00038904,2]
[354529771,1740558678921,-500.0,0.00038904,2]
[354529772,1740558678930,-500.0,0.00038904,2]
[354529773,1740558678940,-500.0,0.00038904,2]
[354529774,1740558678950,-500.0,0.00038904,2]
[354529775,1740558678959,-500.0,0.00038904,2]
[354529776,1740558678969,-500.0,0.00038904,2]
[354529777,1740558678979,-500.0,0.00038904,2]
[354529778,1740558678988,-500.0,0.00038904,2]
[354529779,1740558678998,-500.0,0.00038904,2]
[354529780,1740558679008,-507.24227474,0.00038904,2]
[354529781,1740558679018,-500.0,0.00038904,2]
[354529782,1740558679027,-500.0,0.00038904,2]
[354529783,1740558679036,-503.53346243,0.00038904,2]
[354529784,1740558679046,-500.0,0.00038904,2]
[354529785,1740558679055,-500.0,0.00038904,2]
[354529786,1740558679064,-500.0,0.00038904,2]
[354529787,1740558679074,-500.0,0.00038904,2]
[354529788,1740558679083,-500.0,0.00038904,2]
[354529789,1740558679092,-500.0,0.00038904,2]
[354529790,1740558679101,-500.0,0.00038904,2]
[354529791,1740558679111,-500.0,0.00038904,2]
[354529792,1740558679120,-508.18512307,0.00038904,2]
[354529793,1740558679129,-500.0,0.00038904,2]
[354529794,1740558679139,-500.0,0.00038904,2]
[354529795,1740558679148,-500.0,0.00038904,2]
[354529796,1740558679158,-500.0,0.00038904,2]
[354529797,1740558679167,-500.0,0.00038904,2]
[354529798,1740558679177,-787.39,0.00038904,2]
[354529799,1740558679186,-500.0,0.00038904,2]
[354529800,1740558679195,-500.0,0.00038904,2]
[354529801,1740558679205,-500.0,0.00038904,2]
[354529802,1740558679214,-500.0,0.00038904,2]
[354529803,1740558679223,-500.0,0.00038904,2]
[354529804,1740558679232,-511.55850478,0.00038904,2]
[354529805,1740558679241,-500.0,0.00038904,2]
[354529806,1740558679251,-500.0,0.00038904,2]
[354529807,1740558679260,-500.0,0.00038904,2]
[354529808,1740558679269,-500.0,0.00038904,2]
[354529809,1740558679283,-501.68645118,0.00038904,2]
[354529810,1740558679292,-500.0,0.00038904,2]
[354529811,1740558679302,-568.31943033,0.00038904,2]
[354529812,1740558679310,-500.0,0.00038904,2]
[354529813,1740558679321,-683.71,0.00038904,2]
[354529814,1740558679330,-500.0,0.00038904,2]
[354529815,1740558679340,-535.2803163,0.00038904,2]
[354529816,1740558679350,-500.0,0.00038904,2]
[354529817,1740558679359,-515.08897581,0.00038904,2]
[354529818,1740558679369,-500.0,0.00038904,2]
[354529819,1740558679379,-500.0,0.00038904,2]
[354529820,1740558679389,-500.0,0.00038904,2]
[354529821,1740558679398,-500.0,0.00038904,2]
[354529822,1740558679408,-500.0,0.00038904,2]
[354529823,1740558679418,-569.11,0.00038904,2]
[354529824,1740558679427,-548.40654811,0.00038904,2]
[354529825,1740558679436,-500.0,0.00038904,2]
[354529826,1740558679446,-500.0,0.00038904,2]
[354529827,1740558679455,-500.0,0.00038904,2]
[354529828,1740558679464,-500.0,0.00038904,2]
[354529829,1740558679473,-500.0,0.00038904,2]
[354529830,1740558679482,-500.0,0.00038904,2]
[354529831,1740558679491,-500.0,0.00038904,2]
[354529832,1740558679500,-500.0,0.00038904,2]
[354529833,1740558679510,-500.0,0.00038904,2]
[354529834,1740558679519,-500.0,0.00038904,2]
[354529835,1740558679529,-500.0,0.00038904,2]
[354529836,1740558679538,-500.0,0.00038904,2]
[354529837,1740558679547,-500.0,0.00038904,2]
[354529838,1740558679557,-500.0,0.00038904,2]
[354529839,1740558679566,-500.0,0.00038904,2]
[354529840,1740558679576,-500.0,0.00038904,2]
[354529841,1740558679586,-500.0,0.00038904,2]
[354529842,1740558679595,-500.0,0.00038904,2]
[354529843,1740558679605,-500.0,0.00038904,2]
[354529844,1740558679614,-500.0,0.00038904,2]
[354529845,1740558679623,-500.0,0.00038904,2]
[354529846,1740558679633,-435.53794733,0.00038904,2]
[354529847,1740558679644,-500.0,0.00038904,2]
[354529848,1740558679660,-503.40879922,0.00038904,2]
[354529849,1740558679670,-500.0,0.00038904,2]
[354529850,1740558679679,-500.0,0.00038904,2]
[354529851,1740558679688,-500.0,0.00038904,2]
[354529852,1740558679698,-500.0,0.00038904,2]
[354529853,1740558679707,-512.7,0.00038904,2]
[354529854,1740558679717,-500.0,0.00038904,2]
[354529855,1740558679727,-500.0,0.00038904,2]
[354529856,1740558679737,-513.54263718,0.00038904,2]
[354529857,1740558679746,-500.0,0.00038904,2]
[354529858,1740558679755,-500.0,0.00038904,2]
[354529859,1740558679764,-500.0,0.00038904,2]
[354529860,1740558679774,-500.0,0.00038904,2]
[354529861,1740558679784,-500.0,0.00038904,2]
[354529862,1740558679793,-500.0,0.00038904,2]
[354529863,1740558679802,-500.0,0.00038904,2]
[354529864,1740558679812,-500.0,0.00038904,2]
[354529865,1740558679822,-500.0,0.00038904,2]
[354529866,1740558679831,-500.0,0.00038904,2]
[354529867,1740558679840,-500.0,0.00038904,2]
[354529868,1740558679850,-500.0,0.00038904,2]
[354529869,1740558679859,-500.0,0.00038904,2]
[354529870,1740558679868,-500.0,0.00038904,2]
[354529871,1740558679877,-500.0,0.00038904,2]
[354529872,1740558679887,-505.8874119,0.00038904,2]
[354529873,1740558679896,-500.0,0.00038904,2]
[354529874,1740558679906,-500.0,0.00038904,2]
[354529875,1740558679915,-562.39,0.00038904,2]
[354529876,1740558679925,-578.94,0.00038904,2]
[354529877,1740558679934,-500.0,0.00038904,2]
[354529878,1740558679943,-500.0,0.00038904,2]
[354529879,1740558679953,-500.0,0.00038904,2]
[354529880,1740558679962,-500.0,0.00038904,2]
[354529881,1740558679971,-500.0,0.00038904,2]
[354529882,1740558679981,-500.0,0.00038904,2]
[354529883,1740558679990,-500.0,0.00038904,2]
[354529884,1740558679999,-500.0,0.00038904,2]
[354529885,1740558680009,-859.52,0.00038904,2]
[354529886,1740558680019,-518.96516754,0.00038904,2]
[354529887,1740558680028,-500.0,0.00038904,2]
[354529888,1740558680037,-500.0,0.00038904,2]
[354529889,1740558680046,-500.0,0.00038904,2]
[354529890,1740558680056,-364.60421084,0.00038904,2]
[354529891,1740558680065,-500.0,0.00038904,2]
[354529892,1740558680074,-500.0,0.00038904,2]
[354529893,1740558680084,-703.42,0.00038904,2]
[354529894,1740558680094,-500.0,0.00038904,2]
[354529895,1740558680102,-500.0,0.00038904,2]
[354529896,1740558680112,-500.0,0.00038904,2]
[354529897,1740558680121,-500.0,0.00038904,2]
[354529898,1740558680130,-500.0,0.00038904,2]
[354529899,1740558680139,-500.0,0.00038904,2]
[354529900,1740558680149,-500.0,0.00038904,2]
[354529901,1740558680158,-500.0,0.00038904,2]
[354529902,1740558680168,-500.0,0.00038904,2]
[354529903,1740558680177,-500.0,0.00038904,60]
[354529904,1740558680187,-500.0,0.00038904,2]
[354529905,1740558680196,-560.54795736,0.00038904,2]
[354529906,1740558680207,-500.0,0.00038904,2]
[354529907,1740558680218,-500.0,0.00038904,2]
[354529908,1740558680228,-500.0,0.00038904,2]
[354529909,1740558680238,-500.0,0.00038904,2]
[354529910,1740558680248,-502.42472601,0.00038904,2]
[354529911,1740558680258,-582.16823479,0.00038904,2]
[354529912,1740558680268,-216.63364772,0.00038904,2]
[354529913,1740558680278,-500.0,0.00038904,2]
[354529914,1740558680292,-502.77624857,0.00038904,2]
[354529915,1740558680301,-667.32,0.00038904,2]
[354529916,1740558680310,-522.1581037,0.00038904,2]
[354529917,1740558680319,-616.8,0.00038904,2]
[354529918,1740558680331,-500.0,0.00038904,2]
[354529919,1740558680340,-604.52516169,0.00038904,2]
[354529920,1740558680350,-500.0,0.00038904,2]
[354529921,1740558680360,-503.77071419,0.00038904,2]
[354529922,1740558680369,-500.0,0.00038904,2]
[354529923,1740558680379,-500.0,0.00038904,2]
[354529924,1740558680388,-500.0,0.00038904,2]
[354529925,1740558680397,-661.5,0.00038904,2]
[354529926,1740558680406,-500.0,0.00038904,2]
[354529927,1740558680417,-500.0,0.00038904,2]
[354529928,1740558680426,-500.0,0.00038904,2]
[354529929,1740558680435,-500.0,0.00038904,2]
[354529930,1740558680445,-500.0,0.00038904,2]
[354529931,1740558680454,-500.0,0.00038904,2]
[354529932,1740558680463,-500.0,0.00038904,2]
[354529933,1740558680473,-500.0,0.00038904,2]
[354529934,1740558680481,-510.79,0.00038904,2]
[354529935,1740558680491,-501.8020352,0.00038904,2]
[354529936,1740558680501,-504.76165128,0.00038904,2]
[354529937,1740558680510,-500.0,0.00038904,2]
[354529938,1740558680520,-500.0,0.00038904,2]
[354529939,1740558680530,-500.0,0.00038904,2]
[354529940,1740558680540,-500.0,0.00038904,2]
[354529941,1740558680550,-500.0,0.00038904,2]
[354529942,1740558680560,-500.0,0.00038904,2]
[354529943,1740558680570,-500.0,0.00038904,2]
[354529944,1740558680579,-802.93,0.00038904,2]
[354529945,1740558680588,-500.0,0.00038904,2]
[354529946,1740558680598,-500.0,0.00038904,2]
[354529947,1740558680607,-500.0,0.00038904,2]
[354529948,1740558680616,-500.0,0.00038904,2]
[354529949,1740558680625,-500.0,0.00038904,2]
[354529950,1740558680636,-500.0,0.00038904,2]
[354529951,1740558680646,-500.0,0.00038904,2]
[354529952,1740558680655,-500.0,0.00038904,2]
[354529953,1740558680664,-500.0,0.00038904,2]
[354529954,1740558680674,-500.0,0.00038904,2]
[354529955,1740558680683,-569.52,0.00038904,2]
[354529956,1740558680693,-500.0,0.00038904,2]
[354529957,1740558680702,-500.0,0.00038904,2]
[354529958,1740558680711,-500.0,0.00038904,2]
[354529959,1740558680720,-503.04,0.00038904,2]
[354529960,1740558680729,-500.0,0.00038904,2]
[354529961,1740558680738,-500.0,0.00038904,2]
[354529962,1740558680748,-500.0,0.00038904,2]
[354529963,1740558680757,-723.89,0.00038904,2]
[354529964,1740558680766,-534.53306596,0.00038904,2]
[354529965,1740558680775,-500.38,0.00038904,2]
[354529966,1740558680784,-500.0,0.00038904,2]
[354529967,1740558680793,-500.0,0.00038904,2]
[354529968,1740558680802,-501.5,0.00038904,2]
[354529969,1740558680811,-500.0,0.00038904,2]
[354529970,1740558680820,-619.57229803,0.00038904,2]
[354529971,1740558680830,-512.87,0.00038904,2]
[354529972,1740558680839,-500.0,0.00038904,2]
[354529973,1740558680848,-500.0,0.00038904,2]
[354529974,1740558680857,-500.0,0.00038904,2]
[354529975,1740558680867,-266.23691395,0.00038904,2]
[354529976,1740558680876,-500.0,0.00038904,2]
[354529977,1740558680885,-186.322582,0.00038904,14]
[354529978,1740558680903,-186.322582,0.00038904,14]
[354529979,1740558680913,-614.65,0.00038904,2]
[354529980,1740558680923,-500.0,0.00038904,2]
[354529981,1740558680977,-500.0,0.00038904,2]
[354529982,1740558680986,-170.637319,0.00038904,14]
[354529983,1740558680996,-500.0,0.00038904,2]
[354529984,1740558681006,-170.637319,0.00038904,14]
[354529985,1740558681015,-624.83,0.00038904,2]
[354529986,1740558681024,-151.0,0.00038904,14]
[354529987,1740558681033,-589.02,0.00038904,2]
[354529988,1740558681042,-889.66,0.00038904,2]
[354529989,1740558681051,-500.0,0.00038904,2]
[354529990,1740558681059,-1136.23,0.00038904,2]
[354529991,1740558681068,-1804.81,0.00038904,2]
[354529992,1740558681078,-1190.11,0.00038904,2]
[354529993,1740558681087,-2633.89,0.00038904,2]
[354529994,1740558681095,-535.35,0.00038904,2]
[354529995,1740558681104,-770.85,0.00038904,2]
[354529996,1740558681113,-1556.33,0.00038904,2]
[354529997,1740558681123,-700.46,0.00038904,2]
[354529998,1740558681133,-911.0,0.00038904,2]
[354529999,1740558681143,-1160.43,0.00038904,2]
[354530000,1740558681153,-151.0,0.00038904,14]
[354530001,1740558681162,-583.33,0.00038904,2]
[354530002,1740558681171,-583.33,0.00038904,2]
[354530003,1740558681181,-626.63,0.00038904,2]
[354530004,1740558681191,-518.21,0.00038904,2]
[354530005,1740558681201,-500.0,0.00038904,2]
[354530006,1740558681210,-547.06,0.00038904,2]
[354530007,1740558681222,-499.28795856,0.00038952,2]
[354530008,1740558681233,-500.0,0.00038952,2]
[354530009,1740558681245,-500.0,0.00038952,2]
[354530010,1740558681255,-837.37,0.00038952,2]
[354530011,1740558681265,-500.0,0.00038952,2]
[354530012,1740558681274,-500.0,0.00038952,2]
[354530013,1740558681287,-1223.33,0.00038952,2]
[354530014,1740558681296,-500.0,0.00038952,2]
[354530015,1740558681306,-428.24645437,0.00038952,2]
[354530016,1740558681315,-500.0,0.00038952,2]
[354530017,1740558681326,-746.59,0.00038952,2]
[354530018,1740558681335,-996.86,0.00038952,2]
[354530019,1740558681344,-649.16,0.00038952,2]
[354530020,1740558681354,-500.0,0.00038952,2]
[354530021,1740558681364,-809.19,0.00038952,2]
[354530022,1740558681373,-500.0,0.00038952,2]
[354530023,1740558681383,-500.0,0.00038952,2]
[354530024,1740558681392,-500.0,0.00038952,2]
[354530025,1740558681402,-500.0,0.00038952,2]
[354530026,1740558681411,-807.31,0.00038952,2]
[354530027,1740558681421,-551.31,0.00038952,2]
[354530028,1740558681431,-500.0,0.00038952,2]
[354530029,1740558681440,-500.0,0.00038952,2]
[354530030,1740558681450,-1093.48,0.00038952,2]
[354530031,1740558681460,-500.38640843,0.00038952,2]
[354530032,1740558681469,-923.19,0.00038952,2]
[354530033,1740558681478,-937.3,0.00038952,2]
[354530034,1740558681488,-500.0,0.00038952,2]
[354530035,1740558681497,-500.0,0.00038952,2]
[354530036,1740558681506,-731.22,0.00038952,2]
[354530037,1740558681516,-836.16,0.00038952,2]
[354530038,1740558681526,-1435.65,0.00038952,2]
[354530039,1740558681535,-1482.81,0.00038952,2]
[354530040,1740558681545,-745.96,0.00038952,2]
[354530041,1740558681554,-1248.13,0.00038952,2]
[354530042,1740558681564,-631.6,0.00038952,2]
[354530043,1740558681573,-500.0,0.00038952,2]
[354530044,1740558681582,-500.0,0.00038952,2]
[354530045,1740558681593,-691.31,0.00038952,2]
[354530046,1740558681603,-1944.22,0.00038952,2]
[354530047,1740558681613,-500.0,0.00038952,2]
[354530048,1740558681623,-500.0,0.00038952,2]
[354530049,1740558681635,-500.0,0.00038952,2]
[354530050,1740558681644,-934.6,0.00038952,2]
[354530051,1740558681654,-729.0,0.00038952,2]
[354530052,1740558681664,-936.38,0.00038952,2]
[354530053,1740558681674,-683.43,0.00038952,2]
[354530054,1740558681683,-844.03,0.00038952,2]
[354530055,1740558681693,-571.6,0.00038952,2]
[354530056,1740558681702,-500.0,0.00038952,2]
[354530057,1740558681712,-500.0,0.00038952,2]
[354530058,1740558681721,-876.55,0.00038952,2]
[354530059,1740558681732,-519.21,0.00038952,2]
[354530060,1740558681742,-500.0,0.00038952,2]
[354530061,1740558681752,-884.18,0.00038952,2]
[354530062,1740558681762,-763.01,0.00038952,2]
[354530063,1740558681772,-500.0,0.00038952,2]
[354530064,1740558681782,-635.38,0.00038952,2]
[354530065,1740558681791,-500.0,0.00038952,2]
[354530066,1740558681802,-500.0,0.00038952,2]
[354530067,1740558681812,-500.0,0.00038952,2]
[354530068,1740558681822,-5538.76,0.00038952,2]
[354530069,1740558681832,-784.71,0.00038952,2]
[354530070,1740558681841,-500.0,0.00038952,2]
[354530071,1740558681851,-751.07,0.00038952,2]
[354530072,1740558681860,-511.78,0.00038952,2]
[354530073,1740558681870,-642.18,0.00038952,2]
[354530074,1740558681881,-500.0,0.00038952,2]
[354530075,1740558681890,-500.0,0.00038952,2]
[354530076,1740558681900,-674.65,0.00038952,2]
[354530077,1740558681909,-726.46,0.00038952,2]
[354530078,1740558681919,-745.5,0.00038952,2]
[354530079,1740558681929,-500.0,0.00038952,2]
[354530080,1740558681939,-503.2,0.00038952,2]
[354530081,1740558681948,-500.0,0.00038952,2]
[354530082,1740558681958,-500.0,0.00038952,2]
[354530083,1740558681968,-500.0,0.00038973,5]
[354530084,1740558681978,-151.0,0.00039,20]
[354530085,1740558681988,-151.0,0.000391,20]
[354530086,1740558681997,-505.31740897,0.00039167,2]
[354530087,1740558682007,-500.0,0.00039167,2]
[354530088,1740558682017,-500.0,0.00039167,2]
[354530089,1740558682027,-500.0,0.00039167,2]
[354530090,1740558682037,-500.0,0.00039167,2]
[354530091,1740558682047,-500.0,0.00039167,2]
[354530092,1740558682057,-500.0,0.00039167,2]
[354530093,1740558682067,-500.0,0.00039167,2]
[354530094,1740558682076,-500.0,0.00039167,2]
[354530095,1740558682087,-785.72,0.00039167,2]
[354530096,1740558682097,-202.6442219,0.00039167,2]
[354530097,1740558682106,-500.0,0.00039167,2]
[354530098,1740558682117,-500.0,0.00039167,2]
[354530099,1740558682126,-500.0,0.00039167,2]
[354530100,1740558682138,-218.78148447,0.00039167,2]
[354530101,1740558682148,-587.05422798,0.00039167,2]
[354530102,1740558682157,-500.0,0.00039167,2]
[354530103,1740558682167,-500.0,0.00039167,2]
[354530104,1740558682176,-220.56218032,0.00039167,2]
[354530105,1740558682185,-413.73417559,0.00039167,2]
[354530106,1740558682195,-500.0,0.00039167,2]
[354530107,1740558682205,-500.0,0.00039167,2]
[354530108,1740558682214,-500.0,0.00039167,2]
[354530109,1740558682223,-500.0,0.00039167,2]
[354530110,1740558682232,-502.7522333,0.00039167,2]
[354530111,1740558682241,-500.0,0.00039167,2]
[354530112,1740558682250,-500.0,0.00039167,2]
[354530113,1740558682260,-500.0,0.00039167,2]
[354530114,1740558682270,-500.0,0.00039167,2]
[354530115,1740558682283,-500.0,0.00039167,2]
[354530116,1740558682294,-500.0,0.00039167,2]
[354530117,1740558682303,-500.0,0.00039167,2]
[354530118,1740558682313,-500.0,0.00039167,2]
[354530119,1740558682324,-930.16,0.00039167,2]
[354530120,1740558682334,-500.0,0.00039167,2]
[354530121,1740558682345,-639.3,0.00039167,2]
[354530122,1740558682354,-500.0,0.00039167,2]
[354530123,1740558682365,-641.45,0.00039167,2]
[354530124,1740558682374,-500.0,0.00039167,2]
[354530125,1740558682387,-500.0,0.00039167,2]
[354530126,1740558682397,-500.0,0.00039167,2]
[354530127,1740558682408,-500.0,0.00039167,2]
[354530128,1740558682418,-500.0,0.00039167,2]
[354530129,1740558682428,-500.0,0.00039167,2]
[354530130,1740558682439,-626.59,0.00039167,2]
[354530131,1740558682449,-500.0,0.00039167,2]
[354530132,1740558682460,-500.0,0.00039167,2]
[354530133,1740558682470,-500.0,0.00039167,2]
[354530134,1740558682480,-500.0,0.00039167,2]
[354530135,1740558682490,-500.0,0.00039167,2]
[354530136,1740558682500,-500.0,0.00039167,2]
[354530137,1740558682510,-500.0,0.00039167,2]
[354530138,1740558682520,-500.0,0.00039167,2]
[354530139,1740558682530,-186.322582,0.00039167,14]
[354530140,1740558682539,-250.0,0.00039167,2]
[354530141,1740558682556,-186.322582,0.00039167,14]
[354530142,1740558682578,-500.0,0.00039167,2]
[354530143,1740558682591,-500.0,0.00039167,2]
[354530144,1740558682601,-500.0,0.00039167,2]
[354530145,1740558682611,-500.0,0.00039167,2]
[354530146,1740558682620,-488.77221855,0.00039167,2]
[354530147,1740558682633,-500.0,0.00039167,2]
[354530148,1740558682642,-500.0,0.00039167,2]
[354530149,1740558682651,-656.28,0.00039167,2]
[354530150,1740558682661,-500.0,0.00039167,2]
[354530151,1740558682671,-500.0,0.00039167,2]
[354530152,1740558682681,-500.0,0.00039167,2]
[354530153,1740558682690,-500.0,0.00039167,2]
[354530154,1740558682699,-500.0,0.00039167,2]
[354530155,1740558682709,-500.0,0.00039167,2]
[354530156,1740558682718,-500.0,0.00039167,2]
[354530157,1740558682728,-689.21,0.00039167,2]
[354530158,1740558682737,-504.91155777,0.00039167,2]
[354530159,1740558682747,-507.4968463,0.00039167,2]
[354530160,1740558682756,-785.33,0.00039167,2]
[354530161,1740558682766,-500.0,0.00039167,2]
[354530162,1740558682776,-500.0,0.00039167,2]
[354530163,1740558682790,-500.0,0.00039167,2]
[354530164,1740558682811,-500.0,0.00039167,2]
[354530165,1740558682826,-506.44407792,0.00039167,2]
[354530166,1740558682836,-500.0,0.00039167,2]
[354530167,1740558682847,-500.0,0.00039167,2]
[354530168,1740558682856,-500.0,0.00039167,2]
[354530169,1740558682866,-500.0,0.00039167,2]
[354530170,1740558682876,-500.0,0.00039167,2]
[354530171,1740558682888,-500.0,0.00039167,2]
[354530172,1740558682897,-500.0,0.00039167,2]
[354530173,1740558682908,-500.0,0.00039167,2]
[354530174,1740558682918,-500.0,0.00039167,2]
[354530175,1740558682927,-500.0,0.00039167,2]
[354530176,1740558682937,-500.0,0.00039167,2]
[354530177,1740558682947,-734.51,0.00039167,2]
[354530178,1740558682956,-500.0,0.00039167,2]
[354530179,1740558682966,-500.0,0.00039167,2]
[354530180,1740558682976,-500.0,0.00039167,2]
[354530181,1740558682986,-500.0,0.00039167,2]
[354530182,1740558682995,-524.41,0.00039167,2]
[354530183,1740558683006,-926.84,0.00039167,2]
[354530184,1740558683016,-503.7741359,0.00039167,2]
[354530185,1740558683026,-506.13602377,0.00039167,2]
[354530186,1740558683036,-500.0,0.00039167,2]
[354530187,1740558683046,-500.0,0.00039167,2]
[354530188,1740558683056,-7891.32,0.00039167,2]
[354530189,1740558683066,-500.0,0.00039167,2]
[354530190,1740558683076,-4684.26,0.00039167,2]
[354530191,1740558683087,-871.57,0.00039167,2]
[354530192,1740558683096,-500.0,0.00039167,2]
[354530193,1740558683106,-500.0,0.00039167,2]
[354530194,1740558683116,-500.0,0.00039167,2]
[354530195,1740558683125,-174.23315899,0.00039167,2]
[354530196,1740558683136,-500.0,0.00039167,2]
[354530197,1740558683146,-978.51,0.00039167,2]